fUST/lending_fUST_20250408
["ID","MTS","AMOUNT","RATE_DAILY","PERIOD"]
[357498215,1744090245723,-4266.66,0.00021079,2]
[357498216,1744090245734,-426.59909462,0.00021079,2]
[357498217,1744090245744,-500.0,0.00021079,2]
[357498218,1744090245754,-1000.59,0.00021079,2]
[357498219,1744090245765,-500.0,0.00021081,2]
[357498220,1744090245775,-500.0,0.00021081,2]
[357498221,1744090245786,-548.35516944,0.00021081,2]
[357498222,1744090245803,-612.7,0.00021081,2]
[357498223,1744090245812,-500.0,0.00021081,2]
[357498224,1744090245822,-168.0,0.00021257,2]
[357498225,1744090245832,-168.0,0.00021257,2]
[357498226,1744090245843,-288.9796707,0.00021257,2]
[357498227,1744090245853,-207.4,0.0002134,2]
[357498228,1744090245862,-818.3,0.00021351,2]
[357498229,1744090245873,-500.0,0.00021351,2]
[357498230,1744090245883,-2302.42,0.00021351,2]
[357498231,1744090245892,-924.23,0.00021351,2]
[357498232,1744090245902,-920.99,0.00021351,2]
[357498233,1744090245912,-2679.96,0.00021351,2]
[357498234,1744090245922,-500.0,0.00021351,2]
[357498236,1744090245932,-559.7,0.00021351,2]
[357498237,1744090245941,-770.69,0.00021351,2]
[357498238,1744090245951,-500.0,0.00021351,2]
[357498239,1744090245961,-1419.97,0.00021351,2]
[357498240,1744090245972,-1230.42,0.00021351,2]
[357498241,1744090245982,-500.0,0.00021351,2]
[357498243,1744090245991,-969.67,0.00021351,2]
[357498244,1744090246002,-1157.85,0.00021351,2]
[357498245,1744090246011,-813.13,0.00021351,2]
[357498246,1744090246021,-521.50206092,0.00021351,2]
[357498247,1744090246031,-667.97,0.00021351,2]
[357498248,1744090246041,-500.0,0.00021352,2]
[357498249,1744090246052,-500.0,0.00021352,2]
[357498250,1744090246062,-500.0,0.00021352,2]
[357498251,1744090246072,-500.0,0.00021352,2]
[357498252,1744090246081,-500.0,0.00021352,2]
[357498253,1744090246091,-500.0,0.00021352,2]
[357498254,1744090246103,-203.13274718,0.00021352,2]
[357498255,1744090246113,-500.0,0.00021352,2]
[357498256,1744090246123,-671.29,0.00021352,2]
[357498257,1744090246132,-500.0,0.00021352,2]
[357498258,1744090246142,-500.0,0.00021352,2]
[357498259,1744090246152,-500.0,0.00021352,2]
[357498260,1744090246161,-500.0,0.00021352,2]
[357498261,1744090246171,-896.67,0.00021352,2]
[357498262,1744090246180,-500.0,0.00021352,2]
[357498263,1744090246191,-500.0,0.00021352,2]
[357498264,1744090246200,-500.0,0.00021352,2]
[357498265,1744090246210,-500.0,0.00021352,2]
[357498266,1744090246220,-500.0,0.00021352,2]
[357498267,1744090246230,-500.0,0.00021352,2]
[357498268,1744090246240,-500.0,0.00021352,2]
[357498269,1744090246250,-637.4,0.00021352,2]
[357498270,1744090246260,-665.25,0.00021352,2]
[357498271,1744090246270,-500.0,0.00021352,2]
[357498272,1744090246280,-1225.48,0.00021352,2]
[357498273,1744090246290,-690.06,0.00021352,2]
[357498274,1744090246299,-500.0,0.00021352,2]
[357498275,1744090246309,-500.0,0.00021352,2]
[357498276,1744090246320,-500.0,0.00021352,2]
[357498277,1744090246329,-500.0,0.00021352,2]
[357498278,1744090246339,-640.3,0.00021352,2]
[357498279,1744090246349,-931.44,0.00021352,2]
[357498280,1744090246359,-1164.59,0.00021352,2]
[357498281,1744090246369,-596.69,0.00021353,2]
[357498282,1744090246379,-500.0,0.00021353,2]
[357498283,1744090246389,-500.0,0.00021353,2]
[357498284,1744090246398,-691.82,0.00021353,2]
[357498285,1744090246408,-414.24291645,0.00021353,2]
[357498286,1744090246418,-587.28,0.00021353,2]
[357498287,1744090246428,-500.0,0.00021353,2]
[357498288,1744090246439,-395.04997939,0.00021353,2]
[357498289,1744090246448,-500.0,0.00021353,2]
[357498290,1744090246458,-500.0,0.00021353,2]
[357498291,1744090246468,-500.0,0.00021353,2]
[357498292,1744090246478,-642.9,0.00021353,2]
[357498293,1744090246489,-650.59,0.00021353,2]
[357498294,1744090246499,-609.09158987,0.00021353,2]
[357498295,1744090246509,-559.87,0.00021353,2]
[357498296,1744090246518,-500.0,0.00021353,2]
[357498297,1744090246529,-500.0,0.00021353,2]
[357498298,1744090246539,-502.99,0.00021353,2]
[357498299,1744090246549,-584.46,0.00021353,2]
[357498300,1744090246559,-1136.79,0.00021353,2]
[357498301,1744090246570,-1091.03,0.00021353,2]
[357498302,1744090246580,-633.46,0.00021353,2]
[357498303,1744090246590,-846.06,0.00021353,2]
[357498304,1744090246599,-500.0,0.00021353,2]
[357498305,1744090246609,-500.0,0.00021353,2]
[357498306,1744090246619,-1133.83,0.00021353,2]
[357498307,1744090246628,-500.0,0.00021353,2]
[357498308,1744090246638,-1701.67,0.00021353,2]
[357498309,1744090246648,-500.0,0.00021353,2]
[357498310,1744090246658,-534.6,0.00021353,2]
[357498311,1744090246667,-625.54,0.00021353,2]
[357498312,1744090246677,-608.42,0.00021353,2]
[357498313,1744090246687,-2070.25,0.00021353,2]
[357498314,1744090246697,-500.0,0.00021353,2]
[357498315,1744090246707,-4266.66,0.00021353,2]
[357498316,1744090246717,-1000.59,0.00021353,2]
[357498317,1744090246726,-500.0,0.00021355,2]
[357498318,1744090246735,-500.0,0.00021355,2]
[357498319,1744090246745,-612.7,0.00021355,2]
[357498320,1744090246754,-500.0,0.00021355,2]
[357498321,1744090246763,-34200.21093794,0.00021409,2]
[357498322,1744090246773,-160.0,0.00021466,2]
[357498323,1744090246997,-419.46366559,0.00021468,2]
[357498324,1744090247009,-12530.86563381,0.00021468,2]
[357498325,1744090247019,-837.41003169,0.00021468,2]
[357498326,1744090247029,-160.0,0.00021468,2]
[357498327,1744090247039,-160.0,0.00021468,2]
[357498328,1744090247049,-818.3,0.00021625,2]
[357498329,1744090247059,-500.0,0.00021625,2]
[357498330,1744090247073,-2302.42,0.00021625,2]
[357498331,1744090247084,-924.23,0.00021625,2]
[357498332,1744090247093,-920.99,0.00021625,2]
[357498333,1744090247103,-2679.96,0.00021625,2]
[357498334,1744090247113,-301.62,0.00021625,2]
[357498335,1744090247123,-559.7,0.00021625,2]
[357498336,1744090247133,-770.69,0.00021625,2]
[357498337,1744090247143,-500.0,0.00021625,2]
[357498338,1744090247153,-1419.97,0.00021625,2]
[357498339,1744090247163,-1230.42,0.00021625,2]
[357498340,1744090247172,-500.0,0.00021625,2]
[357498341,1744090247183,-969.67,0.00021625,2]
[357498342,1744090247192,-1157.85,0.00021625,2]
[357498343,1744090247202,-813.13,0.00021625,2]
[357498344,1744090247212,-667.97,0.00021625,2]
[357498345,1744090247221,-500.0,0.00021626,2]
[357498346,1744090247231,-500.0,0.00021626,2]
[357498347,1744090247241,-500.0,0.00021626,2]
[357498348,1744090247251,-500.0,0.00021626,2]
[357498349,1744090247261,-500.0,0.00021626,2]
[357498350,1744090247271,-500.0,0.00021626,2]
[357498351,1744090247281,-500.0,0.00021626,2]
[357498352,1744090247291,-671.29,0.00021626,2]
[357498353,1744090247301,-563.97327517,0.00021626,2]
[357498354,1744090247311,-500.0,0.00021626,2]
[357498355,1744090247327,-500.0,0.00021626,2]
[357498356,1744090247337,-343.36359289,0.00021626,2]
[357498357,1744090247347,-896.67,0.00021626,2]
[357498358,1744090247357,-500.0,0.00021626,2]
[357498359,1744090247367,-319.46589594,0.00021626,2]
[357498360,1744090247377,-500.0,0.00021626,2]
[357498361,1744090247386,-500.0,0.00021626,2]
[357498362,1744090247397,-500.0,0.00021626,2]
[357498363,1744090247407,-637.4,0.00021626,2]
[357498364,1744090247417,-665.25,0.00021626,2]
[357498365,1744090247427,-500.0,0.00021626,2]
[357498366,1744090247437,-1225.48,0.00021626,2]
[357498367,1744090247447,-690.06,0.00021626,2]
[357498368,1744090247457,-500.0,0.00021626,2]
[357498369,1744090247468,-500.0,0.00021626,2]
[357498370,1744090247477,-500.0,0.00021626,2]
[357498371,1744090247488,-640.3,0.00021626,2]
[357498372,1744090247497,-931.44,0.00021626,2]
[357498373,1744090247507,-1164.59,0.00021626,2]
[357498374,1744090247518,-596.69,0.00021627,2]
[357498375,1744090247528,-266.95217443,0.00021627,2]
[357498376,1744090247538,-500.0,0.00021627,2]
[357498377,1744090247553,-691.82,0.00021627,2]
[357498378,1744090247563,-587.28,0.00021627,2]
[357498379,1744090247579,-500.0,0.00021627,2]
[357498380,1744090247589,-500.0,0.00021627,2]
[357498381,1744090247600,-500.0,0.00021627,2]
[357498382,1744090247610,-500.0,0.00021627,2]
[357498383,1744090247620,-642.9,0.00021627,2]
[357498384,1744090247631,-650.59,0.00021627,2]
[357498385,1744090247641,-559.87,0.00021627,2]
[357498386,1744090247652,-500.0,0.00021627,2]
[357498387,1744090247662,-500.0,0.00021627,2]
[357498388,1744090247673,-502.99,0.00021627,2]
[357498389,1744090247684,-584.46,0.00021627,2]
[357498390,1744090247695,-1136.79,0.00021627,2]
[357498391,1744090247706,-1091.03,0.00021627,2]
[357498392,1744090247716,-633.46,0.00021627,2]
[357498393,1744090247727,-846.06,0.00021627,2]
[357498394,1744090247737,-500.0,0.00021627,2]
[357498395,1744090247747,-500.0,0.00021627,2]
[357498396,1744090247757,-1133.83,0.00021627,2]
[357498397,1744090247767,-500.0,0.00021627,2]
[357498398,1744090247777,-1701.67,0.00021627,2]
[357498399,1744090247787,-500.0,0.00021627,2]
[357498400,1744090247804,-534.6,0.00021627,2]
[357498401,1744090247814,-625.54,0.00021627,2]
[357498402,1744090247827,-608.42,0.00021627,2]
[357498403,1744090247838,-2070.25,0.00021627,2]
[357498404,1744090247848,-500.0,0.00021627,2]
[357498405,1744090247858,-4266.66,0.00021627,2]
[357498406,1744090247869,-1000.59,0.00021627,2]
[357498407,1744090247879,-151.0,0.00021627,2]
[357498408,1744090247889,-324.52482539,0.00021629,2]
[357498409,1744090247899,-500.0,0.00021629,2]
[357498410,1744090247909,-612.7,0.00021629,2]
[357498411,1744090247918,-500.0,0.00021629,2]
[357498412,1744090247928,-500.0,0.00021746,2]
[357498413,1744090247938,-160.968227,0.00021899,2]
[357498414,1744090247947,-151.183217,0.00021899,2]
[357498415,1744090247957,-818.3,0.00021899,2]
[357498416,1744090247967,-500.0,0.00021899,2]
[357498417,1744090247977,-151.0,0.00021899,2]
[357498418,1744090247986,-2302.42,0.00021899,2]
[357498419,1744090247996,-151.0,0.00021899,2]
[357498420,1744090248006,-924.23,0.00021899,2]
[357498421,1744090248016,-151.0,0.00021899,2]
[357498422,1744090248026,-920.99,0.00021899,2]
[357498423,1744090248036,-2679.96,0.00021899,2]
[357498424,1744090248047,-559.7,0.00021899,2]
[357498425,1744090248057,-770.69,0.00021899,2]
[357498426,1744090248070,-500.0,0.00021899,2]
[357498427,1744090248080,-1419.97,0.00021899,2]
[357498428,1744090248093,-1230.42,0.00021899,2]
[357498429,1744090248102,-151.0,0.00021899,2]
[357498430,1744090248112,-500.0,0.00021899,2]
[357498431,1744090248122,-969.67,0.00021899,2]
[357498432,1744090248132,-1157.85,0.00021899,2]
[357498433,1744090248142,-813.13,0.00021899,2]
[357498434,1744090248152,-667.97,0.00021899,2]
[357498435,1744090248163,-500.0,0.000219,2]
[357498436,1744090248173,-500.0,0.000219,2]
[357498437,1744090248183,-500.0,0.000219,2]
[357498438,1744090248196,-500.0,0.000219,2]
[357498439,1744090248206,-500.0,0.000219,2]
[357498440,1744090248215,-500.0,0.000219,2]
[357498441,1744090248225,-500.0,0.000219,2]
[357498442,1744090248235,-671.29,0.000219,2]
[357498443,1744090248244,-500.0,0.000219,2]
[357498444,1744090248254,-500.0,0.000219,2]
[357498445,1744090248265,-896.67,0.000219,2]
[357498446,1744090248275,-500.0,0.000219,2]
[357498447,1744090248286,-500.0,0.000219,2]
[357498448,1744090248296,-500.0,0.000219,2]
[357498449,1744090248307,-500.0,0.000219,2]
[357498450,1744090248317,-637.4,0.000219,2]
[357498451,1744090248327,-665.25,0.000219,2]
[357498452,1744090248337,-647.05040879,0.000219,2]
[357498453,1744090248347,-1225.48,0.000219,2]
[357498454,1744090248358,-690.06,0.000219,2]
[357498455,1744090248367,-500.0,0.000219,2]
[357498456,1744090248378,-500.0,0.000219,2]
[357498457,1744090248387,-500.0,0.000219,2]
[357498458,1744090248397,-640.3,0.000219,2]
[357498459,1744090248409,-931.44,0.000219,2]
[357498460,1744090248418,-1164.59,0.000219,2]
[357498461,1744090248429,-596.69,0.00021901,2]
[357498462,1744090248439,-500.0,0.00021901,2]
[357498463,1744090248449,-691.82,0.00021901,2]
[357498464,1744090248460,-587.28,0.00021901,2]
[357498465,1744090248470,-500.0,0.00021901,2]
[357498466,1744090248480,-500.0,0.00021901,2]
[357498467,1744090248490,-500.0,0.00021901,2]
[357498468,1744090248501,-500.0,0.00021901,2]
[357498469,1744090248511,-642.9,0.00021901,2]
[357498470,1744090248521,-650.59,0.00021901,2]
[357498471,1744090248531,-559.87,0.00021901,2]
[357498472,1744090248541,-500.0,0.00021901,2]
[357498473,1744090248551,-500.0,0.00021901,2]
[357498474,1744090248562,-502.99,0.00021901,2]
[357498475,1744090248575,-584.46,0.00021901,2]
[357498476,1744090248585,-1136.79,0.00021901,2]
[357498477,1744090248597,-1091.03,0.00021901,2]
[357498478,1744090248608,-633.46,0.00021901,2]
[357498479,1744090248619,-846.06,0.00021901,2]
[357498480,1744090248628,-607.53279701,0.00021901,2]
[357498481,1744090248638,-500.0,0.00021901,2]
[357498482,1744090248649,-1133.83,0.00021901,2]
[357498483,1744090248659,-500.0,0.00021901,2]
[357498484,1744090248670,-1701.67,0.00021901,2]
[357498485,1744090248680,-500.0,0.00021901,2]
[357498486,1744090248691,-534.6,0.00021901,2]
[357498487,1744090248702,-625.54,0.00021901,2]
[357498488,1744090248713,-608.42,0.00021901,2]
[357498489,1744090248723,-2070.25,0.00021901,2]
[357498490,1744090248734,-192.35222418,0.00021901,2]
[357498491,1744090248745,-4266.66,0.00021901,2]
[357498492,1744090248755,-1000.59,0.00021901,2]
[357498493,1744090248765,-500.0,0.00021903,2]
[357498494,1744090248775,-612.7,0.00021903,2]
[357498495,1744090248785,-500.0,0.00021903,2]
[357498496,1744090248801,-349.988,0.00021907,2]
[357498497,1744090248811,-200.0,0.00021917,2]
[357498498,1744090248823,-1770.0,0.00022,2]
[357498499,1744090248833,-818.3,0.00022173,2]
[357498500,1744090248844,-500.0,0.00022173,2]
[357498501,1744090248860,-2302.42,0.00022173,2]
[357498502,1744090248871,-924.23,0.00022173,2]
[357498503,1744090248883,-920.99,0.00022173,2]
[357498504,1744090248893,-2679.96,0.00022173,2]
[357498505,1744090248903,-559.7,0.00022173,2]
[357498506,1744090248913,-770.69,0.00022173,2]
[357498507,1744090248924,-500.0,0.00022173,2]
[357498508,1744090248934,-1419.97,0.00022173,2]
[357498509,1744090248943,-1230.42,0.00022173,2]
[357498510,1744090248954,-500.0,0.00022173,2]
[357498511,1744090248964,-969.67,0.00022173,2]
[357498512,1744090248974,-1157.85,0.00022173,2]
[357498513,1744090248985,-813.13,0.00022173,2]
[357498514,1744090248997,-667.97,0.00022173,2]
[357498515,1744090249008,-500.0,0.00022174,2]
[357498516,1744090249019,-500.0,0.00022174,2]
[357498517,1744090249030,-500.0,0.00022174,2]
[357498518,1744090249040,-500.0,0.00022174,2]
[357498519,1744090249050,-500.0,0.00022174,2]
[357498520,1744090249061,-500.0,0.00022174,2]
[357498521,1744090249074,-500.0,0.00022174,2]
[357498522,1744090249085,-671.29,0.00022174,2]
[357498523,1744090249111,-500.0,0.00022174,2]
[357498524,1744090249130,-500.0,0.00022174,2]
[357498525,1744090249152,-896.67,0.00022174,2]
[357498526,1744090249167,-500.0,0.00022174,2]
[357498527,1744090249178,-500.0,0.00022174,2]
[357498528,1744090249190,-500.0,0.00022174,2]
[357498529,1744090249201,-500.0,0.00022174,2]
[357498530,1744090249210,-637.4,0.00022174,2]
[357498531,1744090249221,-665.25,0.00022174,2]
[357498532,1744090249231,-1225.48,0.00022174,2]
[357498533,1744090249242,-690.06,0.00022174,2]
[357498534,1744090249252,-496.0555075,0.00022174,2]
[357498535,1744090249263,-500.0,0.00022174,2]
[357498536,1744090249274,-500.0,0.00022174,2]
[357498537,1744090249284,-640.3,0.00022174,2]
[357498538,1744090249294,-931.44,0.00022174,2]
[357498539,1744090249305,-1164.59,0.00022174,2]
[357498540,1744090249315,-596.69,0.00022175,2]
[357498541,1744090249326,-204.51312553,0.00022175,2]
[357498542,1744090249336,-691.82,0.00022175,2]
[357498543,1744090249346,-587.28,0.00022175,2]
[357498544,1744090249357,-260.55888083,0.00022175,2]
[357498545,1744090249368,-500.0,0.00022175,2]
[357498546,1744090249379,-500.0,0.00022175,2]
[357498547,1744090249389,-500.0,0.00022175,2]
[357498548,1744090249400,-642.9,0.00022175,2]
[357498549,1744090249410,-650.59,0.00022175,2]
[357498550,1744090249420,-559.87,0.00022175,2]
[357498551,1744090249431,-500.0,0.00022175,2]
[357498552,1744090249441,-500.0,0.00022175,2]
[357498553,1744090249451,-502.99,0.00022175,2]
[357498554,1744090249462,-584.46,0.00022175,2]
[357498555,1744090249473,-1136.79,0.00022175,2]
[357498556,1744090249484,-1091.03,0.00022175,2]
[357498557,1744090249494,-633.46,0.00022175,2]
[357498558,1744090249504,-846.06,0.00022175,2]
[357498559,1744090249514,-500.0,0.00022175,2]
[357498560,1744090249524,-1133.83,0.00022175,2]
[357498561,1744090249534,-500.0,0.00022175,2]
[357498562,1744090249544,-1701.67,0.00022175,2]
[357498563,1744090249555,-500.0,0.00022175,2]
[357498564,1744090249564,-534.6,0.00022175,2]
[357498565,1744090249575,-625.54,0.00022175,2]
[357498566,1744090249586,-608.42,0.00022175,2]
[357498567,1744090249596,-2070.25,0.00022175,2]
[357498568,1744090249607,-4266.66,0.00022175,2]
[357498569,1744090249617,-1000.59,0.00022175,2]
[357498570,1744090249627,-500.0,0.00022177,2]
[357498571,1744090249637,-612.7,0.00022177,2]
[357498572,1744090249647,-500.0,0.00022177,2]
[357498573,1744090249657,-818.3,0.00022447,2]
[357498574,1744090249667,-500.0,0.00022447,2]
[357498575,1744090249677,-2302.42,0.00022447,2]
[357498576,1744090249688,-924.23,0.00022447,2]
[357498577,1744090249699,-920.99,0.00022447,2]
[357498578,1744090249708,-2679.96,0.00022447,2]
[357498579,1744090249719,-559.7,0.00022447,2]
[357498580,1744090249729,-770.69,0.00022447,2]
[357498581,1744090249739,-500.0,0.00022447,2]
[357498582,1744090249749,-1419.97,0.00022447,2]
[357498583,1744090249759,-1230.42,0.00022447,2]
[357498584,1744090249770,-500.0,0.00022447,2]
[357498585,1744090249780,-969.67,0.00022447,2]
[357498586,1744090249790,-1157.85,0.00022447,2]
[357498587,1744090249802,-813.13,0.00022447,2]
[357498588,1744090249812,-667.97,0.00022447,2]
[357498589,1744090249823,-500.0,0.00022448,2]
[357498590,1744090249833,-500.0,0.00022448,2]
[357498591,1744090249843,-500.0,0.00022448,2]
[357498592,1744090249854,-500.0,0.00022448,2]
[357498593,1744090249864,-500.0,0.00022448,2]
[357498594,1744090249874,-201.41340904,0.00022448,2]
[357498595,1744090249884,-500.0,0.00022448,2]
[357498596,1744090249895,-671.29,0.00022448,2]
[357498597,1744090249904,-500.0,0.00022448,2]
[357498598,1744090249914,-175.16,0.00022448,2]
[357498599,1744090249924,-896.67,0.00022448,2]
[357498600,1744090249934,-500.0,0.00022448,2]
[357498601,1744090249945,-500.0,0.00022448,2]
[357498602,1744090249954,-500.0,0.00022448,2]
[357498603,1744090249964,-500.0,0.00022448,2]
[357498604,1744090249974,-637.4,0.00022448,2]
[357498605,1744090249984,-665.25,0.00022448,2]
[357498606,1744090249994,-1225.48,0.00022448,2]
[357498607,1744090250004,-690.06,0.00022448,2]
[357498608,1744090250015,-500.0,0.00022448,2]
[357498609,1744090250027,-500.0,0.00022448,2]
[357498610,1744090250037,-640.3,0.00022448,2]
[357498611,1744090250047,-931.44,0.00022448,2]
[357498612,1744090250057,-1164.59,0.00022448,2]
[357498613,1744090250068,-596.69,0.00022449,2]
[357498614,1744090250078,-691.82,0.00022449,2]
[357498615,1744090250089,-587.28,0.00022449,2]
[357498616,1744090250098,-500.0,0.00022449,2]
[357498617,1744090250108,-500.0,0.00022449,2]
[357498618,1744090250118,-500.0,0.00022449,2]
[357498619,1744090250128,-642.9,0.00022449,2]
[357498620,1744090250138,-650.59,0.00022449,2]
[357498621,1744090250148,-559.87,0.00022449,2]
[357498622,1744090250158,-500.0,0.00022449,2]
[357498623,1744090250168,-500.0,0.00022449,2]
[357498624,1744090250178,-502.99,0.00022449,2]
[357498625,1744090250188,-584.46,0.00022449,2]
[357498626,1744090250198,-1136.79,0.00022449,2]
[357498627,1744090250208,-1091.03,0.00022449,2]
[357498628,1744090250218,-633.46,0.00022449,2]
[357498629,1744090250228,-846.06,0.00022449,2]
[357498630,1744090250238,-500.0,0.00022449,2]
[357498631,1744090250248,-1133.83,0.00022449,2]
[357498632,1744090250258,-500.0,0.00022449,2]
[357498633,1744090250268,-1701.67,0.00022449,2]
[357498634,1744090250278,-500.0,0.00022449,2]
[357498635,1744090250287,-534.6,0.00022449,2]
[357498636,1744090250297,-625.54,0.00022449,2]
[357498637,1744090250307,-608.42,0.00022449,2]
[357498638,1744090250317,-2070.25,0.00022449,2]
[357498639,1744090250328,-4266.66,0.00022449,2]
[357498640,1744090250337,-1000.59,0.00022449,2]
[357498641,1744090250347,-500.0,0.00022451,2]
[357498642,1744090250357,-612.7,0.00022451,2]
[357498643,1744090250367,-316.82151357,0.00022451,2]
[357498644,1744090250377,-468.11187261,0.00022559,2]
[357498645,1744090250387,-4989.61419825,0.000226,4]
[357498646,1744090250397,-188.0,0.000227,2]
[357498647,1744090250407,-189.46372505,0.000227,2]
[357498648,1744090250418,-215.0738,0.00022709,2]
[357498649,1744090250428,-818.3,0.00022721,2]
[357498650,1744090250438,-500.0,0.00022721,2]
[357498651,1744090250448,-239.067142,0.00022721,7]
[357498652,1744090250458,-2302.42,0.00022721,2]
[357498653,1744090250469,-924.23,0.00022721,2]
[357498654,1744090250478,-920.99,0.00022721,2]
[357498655,1744090250488,-2679.96,0.00022721,2]
[357498656,1744090250498,-559.7,0.00022721,2]
[357498657,1744090250508,-770.69,0.00022721,2]
[357498658,1744090250518,-500.0,0.00022721,2]
[357498659,1744090250688,-1419.97,0.00022721,2]
[357498660,1744090250717,-1230.42,0.00022721,2]
[357498661,1744090250727,-500.0,0.00022721,2]
[357498662,1744090250738,-151.0,0.00022721,7]
[357498663,1744090250748,-969.67,0.00022721,2]
[357498664,1744090250758,-1157.85,0.00022721,2]
[357498665,1744090250769,-813.13,0.00022721,2]
[357498666,1744090250779,-667.97,0.00022721,2]
[357498667,1744090250789,-559.38280197,0.00022722,2]
[357498668,1744090250800,-500.0,0.00022722,2]
[357498669,1744090250811,-500.0,0.00022722,2]
[357498670,1744090250824,-500.0,0.00022722,2]
[357498671,1744090250834,-500.0,0.00022722,2]
[357498672,1744090250846,-500.0,0.00022722,2]
[357498673,1744090250856,-671.29,0.00022722,2]
[357498674,1744090250866,-500.0,0.00022722,2]
[357498675,1744090250878,-896.67,0.00022722,2]
[357498676,1744090250888,-500.0,0.00022722,2]
[357498677,1744090250898,-210.3861934,0.00022722,2]
[357498678,1744090250908,-500.0,0.00022722,2]
[357498679,1744090250918,-151.0,0.00022722,7]
[357498680,1744090250928,-304.94980465,0.00022722,2]
[357498681,1744090250938,-637.4,0.00022722,2]
[357498682,1744090250948,-151.0,0.00022722,7]
[357498683,1744090250958,-665.25,0.00022722,2]
[357498684,1744090250969,-1225.48,0.00022722,2]
[357498685,1744090250979,-690.06,0.00022722,2]
[357498686,1744090250988,-151.0,0.00022722,7]
[357498687,1744090250998,-421.83926234,0.00022722,2]
[357498688,1744090251009,-500.0,0.00022722,2]
[357498689,1744090251019,-640.3,0.00022722,2]
[357498690,1744090251029,-931.44,0.00022722,2]
[357498691,1744090251040,-1164.59,0.00022722,2]
[357498692,1744090251049,-596.69,0.00022723,2]
[357498693,1744090251059,-691.82,0.00022723,2]
[357498694,1744090251069,-587.28,0.00022723,2]
[357498695,1744090251079,-500.0,0.00022723,2]
[357498696,1744090251089,-500.0,0.00022723,2]
[357498697,1744090251099,-500.0,0.00022723,2]
[357498698,1744090251109,-642.9,0.00022723,2]
[357498699,1744090251119,-650.59,0.00022723,2]
[357498700,1744090251128,-559.87,0.00022723,2]
[357498701,1744090251139,-500.0,0.00022723,2]
[357498702,1744090251149,-500.0,0.00022723,2]
[357498703,1744090251159,-502.99,0.00022723,2]
[357498704,1744090251169,-584.46,0.00022723,2]
[357498705,1744090251179,-1136.79,0.00022723,2]
[357498706,1744090251189,-1091.03,0.00022723,2]
[357498707,1744090251198,-633.46,0.00022723,2]
[357498708,1744090251208,-846.06,0.00022723,2]
[357498709,1744090251218,-500.0,0.00022723,2]
[357498710,1744090251228,-1133.83,0.00022723,2]
[357498711,1744090251238,-500.0,0.00022723,2]
[357498712,1744090251247,-1701.67,0.00022723,2]
[357498713,1744090251257,-500.0,0.00022723,2]
[357498714,1744090251266,-534.6,0.00022723,2]
[357498715,1744090251275,-625.54,0.00022723,2]
[357498716,1744090251284,-608.42,0.00022723,2]